bitfinex-derivatives/quotes_BNBF0:USTF0_20241225
["timestamp","ask_amount","ask_price","bid_price","bid_amount"]
[1735097877521,0.26130213,704.93,702.84,1.05199063]
[1735097877715,0.26130213,704.92,702.84,1.05199063]
[1735097877915,0.26130213,704.91,702.84,1.05199063]
[1735097878118,0.26130213,704.9,702.8,1.05199063]
[1735097878420,0.26130213,704.89,702.8,1.05199063]
[1735097878620,0.26130213,704.88,702.8,1.05199063]
[1735097878821,0.26131562,704.87,702.8,1.05199063]
[1735097879017,0.26131562,704.86,702.8,1.05199063]
[1735097879218,0.26131562,704.85,702.79,1.05199063]
[1735097879417,0.26131562,705.03,702.79,1.05199063]
[1735097879618,0.26131562,705.02,702.79,1.05199063]
[1735097879819,0.28367184,705.04,702.79,1.05199063]
[1735097879820,0.26131562,705.01,702.79,1.05199063]
[1735097880023,0.26131562,705.0,702.8,0.28457598]
[1735097880218,0.26131562,704.99,702.8,0.28457598]
[1735097880419,0.28373221,704.89,702.8,0.28457598]
[1735097880724,0.26131562,704.88,702.8,1.33656661]
[1735097880921,0.26131562,704.87,702.8,1.33656661]
[1735097881117,0.26131562,704.86,702.8,1.33656661]
[1735097881316,0.26131562,704.85,702.8,1.33656661]
[1735097881517,0.26130656,704.84,702.8,1.33656661]
[1735097881720,0.28376039,704.82,702.8,1.33656661]
[1735097881920,0.26130656,704.81,702.8,1.33656661]
[1735097882126,0.28376039,704.82,702.8,1.33656661]
[1735097882319,0.26130883,704.81,702.8,1.33656661]
[1735097882520,0.26130883,704.81,702.84,1.05199063]
[1735097882723,0.26130883,704.81,702.85,0.28455573]
[1735097883420,0.26130883,704.8,702.85,1.33654636]
[1735097883623,0.26130883,704.79,702.85,1.33654636]
[1735097883819,0.26130883,704.78,702.85,1.33654636]
[1735097884019,0.26130883,704.77,702.85,1.33654636]
[1735097884224,0.28376039,704.82,702.85,1.33654636]
[1735097884418,0.26130188,704.81,702.85,1.33654636]
[1735097884618,0.26130188,704.8,702.85,0.28455573]
[1735097884821,0.26130188,704.79,702.85,0.28455573]
[1735097885019,0.26130188,704.78,702.85,0.28455573]
[1735097885218,0.261292,704.77,702.85,0.28455573]
[1735097885426,0.261292,704.76,702.85,0.28455573]
[1735097885724,0.28376039,704.82,702.85,0.28455573]
[1735097885725,0.261292,704.75,702.85,0.28455573]
[1735097885921,0.261292,704.74,702.92,1.05199063]
[1735097886120,0.261292,704.73,702.92,1.05199063]
[1735097886327,0.261292,704.72,702.92,1.05199063]
[1735097886523,0.261292,704.71,702.92,1.05199063]
[1735097886725,0.261292,704.7,702.92,1.05199063]
[1735097886925,0.261292,704.7,702.85,0.28455573]
[1735097886926,0.28376039,704.82,702.88,1.05199063]
[1735097887124,0.26131032,704.81,702.88,1.05199063]
[1735097887326,0.26131032,704.8,702.88,1.05199063]
[1735097887525,0.26131032,704.79,702.88,1.05199063]
[1735097887727,0.26131032,704.78,702.88,1.05199063]
[1735097888027,0.26131032,704.77,702.85,1.33654636]
[1735097888224,0.26131032,704.76,702.85,1.33654636]
[1735097888428,0.26131032,704.75,702.85,1.33654636]
[1735097888627,0.26131032,704.74,702.85,1.33654636]
[1735097888928,0.26131032,704.73,702.85,1.33654636]
[1735097889123,0.26131032,704.72,702.85,0.28455573]
[1735097889427,0.26131032,704.71,702.85,0.28455573]
[1735097889621,0.28376039,704.82,702.85,0.28455573]
[1735097889830,0.26132839,704.81,702.85,0.28455573]
[1735097892428,0.28376039,704.82,702.85,0.28455573]
[1735097892628,0.26130342,704.81,702.85,0.28455573]
[1735097895232,0.28376039,704.82,702.85,0.28455573]
[1735097895435,0.26130868,704.81,702.85,0.28455573]
[1735097895632,0.26130868,704.81,702.85,1.33654636]
[1735097896438,0.28377247,704.79,702.85,1.33654636]
[1735097896637,0.26130868,704.78,702.85,1.33654636]
[1735097896834,0.26130868,704.78,702.9,1.05199063]
[1735097897937,0.26130868,704.78,702.91,0.28453144]
[1735097898134,0.28378455,704.76,702.97,1.05199063]
[1735097898337,0.26130868,704.75,702.98,0.28450311]
[1735097898534,0.28379663,704.73,702.98,0.28450311]
[1735097898839,0.26127985,704.72,702.98,0.28450311]
[1735097899232,0.28379663,704.73,702.98,0.28450311]
[1735097899436,0.26125525,704.72,702.98,0.28450311]
[1735097900640,0.28380468,704.71,703.2,1.05199063]
[1735097900935,0.26125011,704.7,703.2,1.05199063]
[1735097901139,0.28381274,704.69,703.2,1.05199063]
[1735097901437,0.26125011,704.68,703.2,1.05199063]
[1735097901839,0.26125011,704.68,703.12,1.05199063]
[1735097902231,0.28382482,704.66,703.12,1.05199063]
[1735097902436,0.26125011,704.65,703.12,1.05199063]
[1735097902735,0.28383287,704.64,703.12,1.05199063]
[1735097902935,0.28383287,704.64,702.98,0.28450311]
[1735097902936,0.26125011,704.63,703.17,1.05199063]
[1735097903134,0.28384496,704.61,703.17,1.05199063]
[1735097903336,0.26125011,704.6,703.17,1.05199063]
[1735097903536,0.54513928,704.59,703.17,1.05199063]
[1735097903734,0.5451433,704.58,703.17,1.05199063]
[1735097903938,0.54514733,704.57,703.16,1.05199063]
[1735097904137,0.54515136,704.56,703.16,1.05199063]
[1735097904337,0.54515539,704.55,703.16,1.05199063]
[1735097904537,0.54515942,704.54,703.16,1.05199063]
[1735097904740,0.26128626,704.53,703.16,1.05199063]
[1735097905134,0.54516345,704.53,703.16,1.05199063]
[1735097905335,0.26128626,704.52,703.16,1.05199063]
[1735097906037,0.26128626,704.52,703.17,1.05199063]
[1735097906244,0.28388525,704.51,703.17,1.05199063]
[1735097906440,0.26131005,704.5,703.17,1.05199063]
[1735097906636,0.28389331,704.49,703.17,1.05199063]
[1735097906840,0.28389331,704.49,702.98,0.28450311]
[1735097906841,0.26131005,704.48,703.11,1.05199063]
[1735097907041,0.28389331,704.49,703.11,1.05199063]
[1735097907237,0.26133891,704.48,703.11,1.05199063]
[1735097907442,0.2839054,704.46,703.11,1.05199063]
[1735097907642,0.2839054,704.46,702.98,0.28450311]
[1735097907643,0.26133891,704.45,703.03,1.05199063]
[1735097908342,0.28391346,704.44,703.03,1.05199063]
[1735097908543,0.26133891,704.43,703.03,1.05199063]
[1735097908842,0.28392152,704.42,703.03,1.05199063]
[1735097909043,0.26133891,704.41,703.03,1.05199063]
[1735097909243,0.54524499,704.4,703.03,1.05199063]
[1735097909540,0.26131541,704.39,703.06,1.05199063]
[1735097909941,0.54524902,704.39,703.06,1.05199063]
[1735097910140,0.26131541,704.38,703.06,1.05199063]
[1735097910443,0.26131541,704.38,703.09,1.05199063]
[1735097911247,0.26131541,704.38,702.98,0.28450311]
[1735097911248,0.26131541,704.38,703.13,1.05199063]
[1735097911846,0.28393361,704.39,703.13,1.05199063]
[1735097912047,0.26131352,704.38,703.13,1.05199063]
[1735097912547,0.26131352,704.38,702.98,0.28450311]
[1735097912548,0.26131352,704.38,703.14,1.05199063]
[1735097913145,0.54525116,704.38,703.14,1.05199063]
[1735097913341,0.26131352,704.37,703.14,1.05199063]
[1735097913646,0.26131352,704.37,702.98,0.28450311]
[1735097913647,0.2839457,704.36,703.11,1.05199063]
[1735097913847,0.26131352,704.35,703.11,1.05199063]
[1735097914049,0.28395377,704.34,703.11,1.05199063]
[1735097914247,0.26131352,704.33,703.11,1.05199063]
[1735097914548,0.26131352,704.33,703.08,1.05199063]
[1735097914846,0.26131781,704.32,703.08,1.05199063]
[1735097915046,0.26131781,704.31,703.08,1.05199063]
[1735097915241,0.26131781,704.3,703.08,1.05199063]
[1735097915441,0.26132245,704.29,703.13,1.05199063]
[1735097915647,0.26132245,704.28,703.13,1.05199063]
[1735097915847,0.28395377,704.34,703.13,1.05199063]
[1735097915848,0.26132245,704.27,703.13,1.05199063]
[1735097916144,0.26132245,704.26,703.13,1.05199063]
[1735097916345,0.26132245,704.25,703.13,1.05199063]
[1735097916540,0.26132245,704.24,703.13,1.05199063]
[1735097916742,0.26132245,704.23,703.13,1.05199063]
[1735097916945,0.26132245,704.22,703.13,1.05199063]
[1735097917243,0.26132245,704.21,703.13,1.05199063]
[1735097917455,0.28395377,704.34,703.13,1.05199063]
[1735097917748,0.28395377,704.34,702.98,0.28450311]
[1735097917749,0.26132576,704.33,703.14,1.05199063]
[1735097918443,0.26132576,704.33,703.14,0.48348579]
[1735097918644,0.28396183,704.32,703.14,0.48348579]
[1735097918848,1.06213166,704.56,703.14,0.48348579]
[1735097919249,1.06213166,704.56,702.98,0.28450311]
[1735097919449,1.06213166,705.76,702.98,0.28450311]
[1735097919744,0.26081805,705.75,702.98,0.28450311]
[1735097920249,0.26084237,705.74,702.98,0.28450311]
[1735097920447,0.26084237,705.73,702.98,0.28450311]
[1735097920650,0.54424088,705.72,703.62,1.05199063]
[1735097920850,0.26084237,705.71,703.62,1.05199063]
[1735097921651,0.26084237,705.71,703.03,1.05199063]
[1735097921952,0.26084237,705.7,703.03,1.05199063]
[1735097922153,0.26084237,705.69,703.03,1.05199063]
[1735097922453,0.28339851,705.72,703.32,1.05199063]
[1735097922454,0.26084237,705.68,703.32,1.05199063]
[1735097922752,0.26084237,705.67,703.43,0.28432111]
[1735097922948,0.28342662,705.65,703.43,0.28432111]
[1735097923150,0.26091292,705.64,703.43,0.28432111]
[1735097923346,0.26091292,705.63,703.43,0.28432111]
[1735097923553,0.26091292,705.62,703.43,0.28432111]
[1735097923753,0.26091955,705.61,703.43,0.28432111]
[1735097923952,0.26091955,705.6,703.43,0.28432111]
[1735097924253,0.28345474,705.58,703.43,0.28432111]
[1735097924554,0.26091955,705.57,703.43,0.28432111]
[1735097924754,0.28346278,705.56,703.43,0.28432111]
[1735097924951,0.26091955,705.55,703.43,0.28432111]
[1735097925151,0.28347081,705.54,703.43,0.28432111]
[1735097925351,0.26091955,705.53,703.43,0.28432111]
[1735097925552,0.28347885,705.52,703.43,0.28432111]
[1735097925846,0.26090693,705.51,703.43,0.28432111]
[1735097926052,0.28348688,705.5,703.43,0.28432111]
[1735097926256,0.26090693,705.49,703.43,0.28432111]
[1735097927557,0.26090693,705.48,703.43,0.28432111]
[1735097927757,0.26090693,705.47,703.43,0.28432111]
[1735097927955,0.26090693,705.46,703.43,0.28432111]
[1735097928155,0.28348688,705.5,703.43,0.28432111]
[1735097928156,0.26090693,705.45,703.43,0.28432111]
[1735097928350,0.26090693,705.44,703.43,0.28432111]
[1735097928554,0.26085231,705.43,703.43,0.28432111]
[1735097928755,0.26085231,705.42,703.43,0.28432111]
[1735097928956,0.26085231,705.41,703.43,0.28432111]
[1735097929259,0.26085231,705.4,703.43,0.28432111]
[1735097929457,0.26085231,705.39,703.43,0.28432111]
[1735097929758,0.26085231,705.38,703.43,0.28432111]
[1735097930058,0.26085231,705.37,703.43,0.28432111]
[1735097930256,0.26085231,705.36,703.43,0.28432111]
[1735097930458,0.26085231,705.35,703.43,0.28432111]
[1735097930757,0.26085231,705.34,703.43,0.28432111]
[1735097930957,0.26085231,705.33,703.43,0.28432111]
[1735097931159,0.26085231,705.32,703.43,0.28432111]
[1735097931459,0.28348688,705.5,703.43,0.28432111]
[1735097931460,0.2608847,705.31,703.43,0.28432111]
[1735097931659,0.2608847,705.3,703.43,0.28432111]
[1735097931957,0.2608847,705.29,703.43,0.28432111]
[1735097932154,0.26087593,705.28,703.43,0.28432111]
[1735097932351,0.26087593,705.27,703.43,0.28432111]
[1735097932551,0.26087593,705.26,703.43,0.28432111]
[1735097932851,0.26087593,705.25,703.43,0.28432111]
[1735097933054,0.26084365,705.24,703.43,0.28432111]
[1735097933250,0.26084365,705.23,703.43,0.28432111]
[1735097933453,0.26084365,705.22,703.43,0.28432111]
[1735097933651,0.28348688,705.5,703.43,0.28432111]
[1735097933856,0.26084489,705.49,703.43,0.28432111]
[1735097936959,0.2608663,705.48,703.43,0.28432111]
[1735097937157,0.2608663,705.47,703.43,0.28432111]
[1735097937362,0.28348688,705.5,703.43,0.28432111]
[1735097937363,0.2608663,705.46,703.43,0.28432111]
[1735097937562,0.28348688,705.5,703.43,0.28432111]
[1735097937563,0.2608663,705.45,703.43,0.28432111]
[1735097937764,0.2608663,705.44,703.43,0.28432111]
[1735097937962,0.2608663,705.43,703.43,0.28432111]
[1735097938161,0.2608663,705.42,703.43,0.28432111]
[1735097938361,0.28348688,705.5,703.43,0.28432111]
[1735097938562,0.26087209,705.49,703.43,0.28432111]
[1735097938863,0.28349492,705.48,703.43,0.28432111]
[1735097939065,0.26087209,705.47,703.43,0.28432111]
[1735097939759,0.26095297,705.46,703.43,0.28432111]
[1735097939958,0.26095297,705.45,703.43,0.28432111]
[1735097940160,0.26095297,705.44,703.43,0.28432111]
[1735097940364,0.26095297,705.43,703.43,0.28432111]
[1735097940561,0.28349492,705.48,703.43,0.28432111]
[1735097940562,0.26093217,705.42,703.43,0.28432111]
[1735097940766,0.26093217,705.41,703.43,0.28432111]
[1735097940963,0.26093217,705.4,703.43,0.28432111]
[1735097941161,0.26093217,705.47,703.43,0.28432111]
[1735097941364,0.26093217,705.46,703.43,0.28432111]
[1735097941561,0.26093217,705.47,703.43,0.28432111]
[1735097941768,0.26088943,705.45,703.43,0.28432111]
[1735097942068,0.26088943,705.44,703.43,0.28432111]
[1735097942363,0.26088943,705.43,703.43,0.28432111]
[1735097942568,0.26088943,705.42,703.43,0.28432111]
[1735097942762,0.26088943,705.41,703.43,0.28432111]
[1735097942965,0.26088943,705.4,703.43,0.28432111]
[1735097943167,0.26088943,705.39,703.43,0.28432111]
[1735097943369,0.26088943,705.38,703.43,0.28432111]
[1735097943569,0.26088943,705.37,703.43,0.28432111]
[1735097943763,0.26088943,705.36,703.43,0.28432111]
[1735097944068,0.26088943,705.35,703.43,0.28432111]
[1735097944263,0.26088943,705.34,703.43,0.28432111]
[1735097944468,0.26088398,705.33,703.43,0.28432111]
[1735097944661,0.26088398,705.32,703.43,0.28432111]
[1735097944862,0.26088398,705.31,703.43,0.28432111]
[1735097945170,0.26088398,705.3,703.43,0.28432111]
[1735097945469,0.26088398,705.29,703.43,0.28432111]
[1735097945662,0.28349492,705.48,703.43,0.28432111]
[1735097945663,0.26088398,705.28,703.43,0.28432111]
[1735097945861,0.26088398,705.27,703.43,0.28432111]
[1735097946165,0.26088398,705.26,703.43,0.28432111]
[1735097946361,0.26088398,705.25,703.43,0.28432111]
[1735097946566,0.26088398,705.24,703.43,0.28432111]
[1735097946766,0.26088398,705.23,703.43,0.28432111]
[1735097946962,0.26088398,705.22,703.43,0.28432111]
[1735097947167,0.26088398,705.47,703.43,0.28432111]
[1735097947367,0.26088398,705.46,703.43,0.28432111]
[1735097947564,0.26088398,705.45,703.43,0.28432111]
[1735097947762,0.28349492,705.48,703.43,0.28432111]
[1735097947763,0.26088398,705.44,703.43,0.28432111]
[1735097948063,0.26088398,705.43,703.43,0.28432111]
[1735097948263,0.26088398,705.42,703.43,0.28432111]
[1735097948462,0.26088398,705.41,703.43,0.28432111]
[1735097948665,0.26088398,705.4,703.43,0.28432111]
[1735097948865,0.26088398,705.39,703.43,0.28432111]
[1735097949062,0.26088398,705.38,703.43,0.28432111]
[1735097949262,0.26088398,705.37,703.43,0.28432111]
[1735097949468,0.26088398,705.36,703.43,0.28432111]
[1735097949666,0.26088398,705.47,703.43,0.28432111]
[1735097949865,0.26088398,705.46,703.43,0.28432111]
[1735097950065,0.26089768,705.45,703.43,0.28432111]
[1735097950268,0.26089768,705.44,703.43,0.28432111]
[1735097950468,0.26089768,705.43,703.43,0.28432111]
[1735097950767,0.26089768,705.42,703.43,0.28432111]
[1735097950964,0.26089768,705.41,703.43,0.28432111]
[1735097951163,0.26089768,705.4,703.43,0.28432111]
[1735097951366,0.26089768,705.39,703.43,0.28432111]
[1735097951668,0.26089768,705.38,703.43,0.28432111]
[1735097951865,0.26089768,705.37,703.43,0.28432111]
[1735097952069,0.28349492,705.48,703.46,1.05199063]
[1735097952262,0.26084881,705.47,703.46,1.05199063]
[1735097952667,0.26084933,705.46,703.46,1.05199063]
[1735097952969,0.28349492,705.48,703.43,0.28432111]
[1735097952970,0.26086056,705.45,703.68,1.05199063]
[1735097953167,0.26086056,705.44,703.68,1.05199063]
[1735097953370,0.26086056,705.43,703.68,1.05199063]
[1735097953668,0.26086056,705.42,704.01,1.05199063]
[1735097953869,0.26086056,705.41,704.01,1.05199063]
[1735097954070,0.26086056,705.4,704.01,1.05199063]
[1735097954271,0.26086056,705.39,704.01,1.05199063]
[1735097954570,0.26086056,705.38,704.01,1.05199063]
[1735097954776,0.26086056,705.37,704.01,1.05199063]
[1735097954970,0.28349492,705.48,704.01,1.05199063]
[1735097954971,0.26086056,705.36,704.01,1.05199063]
[1735097955171,0.26086056,705.35,704.01,1.05199063]
[1735097955368,0.26086839,705.34,704.01,1.05199063]
[1735097955571,0.28349492,705.48,704.01,1.05199063]
[1735097955773,0.26086611,705.47,704.01,1.05199063]
[1735097956173,0.26086799,705.46,704.01,1.05199063]
[1735097956370,0.26086799,705.45,703.99,0.48348579]
[1735097956573,0.28349492,705.48,703.99,0.48348579]
[1735097956574,0.26086799,705.44,703.99,0.48348579]
[1735097956776,0.26086799,705.43,703.99,0.48348579]
[1735097957076,0.26086799,705.42,703.99,0.48348579]
[1735097957270,0.26086799,705.41,703.99,0.48348579]
[1735097957473,0.26086799,705.4,703.85,1.05199063]
[1735097957669,0.26086799,705.39,703.85,1.05199063]
[1735097957872,0.26086799,705.38,703.85,1.05199063]
[1735097958074,0.26086799,705.37,703.85,1.05199063]
[1735097958272,0.26086799,705.36,704.16,1.05199063]
[1735097958477,0.26086799,705.35,704.16,1.05199063]
[1735097958778,0.26086799,705.34,704.16,1.05199063]
[1735097959076,0.26086799,705.33,704.16,1.05199063]
[1735097959280,0.26086799,705.32,704.17,1.05199063]
[1735097959579,0.26086799,705.31,704.17,1.05199063]
[1735097959777,0.26086799,705.3,704.17,1.05199063]
[1735097959978,0.26086799,705.29,704.17,1.05199063]
[1735097960177,0.26086799,705.28,704.15,1.05199063]
[1735097960479,0.26086799,705.27,704.15,1.05199063]
[1735097960668,0.26086799,705.26,704.15,1.05199063]
[1735097960873,0.26086799,705.25,704.15,1.05199063]
[1735097961076,0.26086799,705.24,704.15,1.05199063]
[1735097961276,0.28349492,705.48,704.15,1.05199063]
[1735097961277,0.26086799,705.23,704.15,1.05199063]
[1735097961477,0.28349492,705.48,704.18,1.05199063]
[1735097961478,0.26086799,705.22,704.18,1.05199063]
[1735097961677,0.26086799,705.21,704.18,1.05199063]
[1735097961877,0.28349492,705.48,704.18,1.05199063]
[1735097961878,0.26086799,705.2,704.18,1.05199063]
[1735097962078,0.26086799,705.19,704.18,1.05199063]
[1735097962279,0.26086799,705.18,704.18,1.05199063]
[1735097962475,0.26086799,705.17,704.18,1.05199063]
[1735097962681,0.26086799,705.16,704.14,1.05199063]
[1735097962980,0.28349492,705.48,704.14,1.05199063]
[1735097962981,0.26086799,705.15,704.14,1.05199063]
[1735097963180,0.26086799,705.14,704.14,1.05199063]
[1735097963383,0.26086799,705.13,704.14,1.05199063]
[1735097963580,0.28349492,705.48,704.14,1.05199063]
[1735097963581,0.26086799,705.12,704.14,1.05199063]
[1735097963877,0.26086799,705.12,703.86,2.14781421]
[1735097963878,0.2608843,705.11,704.15,1.05199063]
[1735097964076,0.28349492,705.48,704.15,1.05199063]
[1735097964077,0.2608843,705.1,704.15,1.05199063]
[1735097964277,0.2608843,705.09,704.15,1.05199063]
[1735097964480,0.28349492,705.48,704.15,1.05199063]
[1735097964682,0.26088355,705.47,704.15,1.05199063]
[1735097964881,0.28349492,705.48,704.15,1.05199063]
[1735097964882,0.26088355,705.46,704.15,1.05199063]
[1735097965082,0.26088355,705.45,704.15,1.05199063]
[1735097965283,0.26088355,705.44,704.15,1.05199063]
[1735097965482,0.26088355,705.43,704.15,1.05199063]
[1735097965684,0.26088355,705.42,704.14,1.05199063]
[1735097965880,0.26088355,705.41,704.14,1.05199063]
[1735097966080,0.26088355,705.4,704.14,1.05199063]
[1735097966284,0.26088355,705.39,704.14,1.05199063]
[1735097966485,0.26088355,705.38,704.14,1.05199063]
[1735097966685,0.26088355,705.37,704.14,1.05199063]
[1735097966888,0.26088355,705.36,704.13,1.05199063]
[1735097967181,0.26088355,705.35,704.13,1.05199063]
[1735097967386,0.26088355,705.34,704.13,1.05199063]
[1735097967685,0.26088355,705.33,704.13,1.05199063]
[1735097967885,0.26088355,705.32,704.13,1.05199063]
[1735097968085,0.26088355,705.31,704.13,1.05199063]
[1735097968287,0.26088355,705.3,704.19,1.05199063]
[1735097968588,0.26088355,705.29,704.19,1.05199063]
[1735097968887,0.26088355,705.28,704.19,1.05199063]
[1735097969089,0.26088355,705.27,704.16,1.05199063]
[1735097969389,0.26088355,705.26,704.16,1.05199063]
[1735097969687,0.26088355,705.25,704.16,1.05199063]
[1735097969889,0.26088355,705.24,704.19,1.05199063]
[1735097970081,0.26088355,705.23,704.19,1.05199063]
[1735097970281,0.26088355,705.22,704.19,1.05199063]
[1735097970482,0.26088355,705.21,704.19,1.05199063]
[1735097970687,0.26088355,705.2,704.19,1.05199063]
[1735097970882,0.28349492,705.48,704.19,1.05199063]
[1735097971188,0.28349492,705.48,704.15,0.81191108]
[1735097971189,0.2608411,705.47,704.24,1.05199063]
[1735097971383,0.2608411,705.46,704.24,1.05199063]
[1735097971583,0.2608411,705.45,704.24,1.05199063]
[1735097971783,0.2608411,705.44,704.24,1.05199063]
[1735097971990,0.2608411,705.44,704.15,0.81191108]
[1735097971991,0.26087451,705.43,704.22,1.05199063]
[1735097972189,0.26087451,705.42,704.22,1.05199063]
[1735097972390,0.26087451,705.41,704.22,1.05199063]
[1735097972590,0.26087451,705.4,704.22,1.05199063]
[1735097972788,0.26087568,705.39,704.22,1.05199063]
[1735097972985,0.26087568,705.38,704.14,0.28403442]
[1735097973185,0.26087568,705.37,704.14,0.28403442]
[1735097973490,0.26087568,705.36,704.14,0.28403442]
[1735097973689,0.26087568,705.35,704.14,0.28403442]
[1735097973884,0.26087568,705.34,704.14,0.28403442]
[1735097974089,0.26087568,705.33,704.14,0.28403442]
[1735097974289,0.26087568,705.32,704.14,0.28403442]
[1735097974590,0.26087568,705.31,704.14,0.28403442]
[1735097974790,0.28349492,705.48,704.14,0.28403442]
[1735097975090,0.26087944,705.47,704.14,0.28403442]
[1735097977690,0.26088479,705.46,704.14,0.28403442]
[1735097977907,0.26088479,705.45,704.14,0.28403442]
[1735097978091,0.26088479,705.44,704.14,0.28403442]
[1735097978290,0.28349492,705.48,704.14,0.28403442]
[1735097978291,0.26088479,705.43,704.14,0.28403442]
[1735097978494,0.26088479,705.42,704.14,0.28403442]
[1735097978689,0.28349492,705.48,704.14,0.28403442]
[1735097978690,0.26088479,705.41,704.14,0.28403442]
[1735097978884,0.28349492,705.48,704.14,0.28403442]
[1735097979694,0.26088473,705.47,704.14,0.28403442]
[1735097981092,0.26088079,705.46,704.14,0.28403442]
[1735097981391,0.26088079,705.45,704.14,0.28403442]
[1735097981593,0.26088079,705.44,704.14,0.28403442]
[1735097981791,0.26088079,705.43,704.14,0.28403442]
[1735097981987,0.26088079,705.42,704.14,0.28403442]
[1735097982193,0.26088079,705.41,704.14,0.28403442]
[1735097982393,0.26088079,705.4,704.14,0.28403442]
[1735097982694,0.26088079,705.39,704.14,0.28403442]
[1735097982886,0.26088079,705.38,704.14,0.28403442]
[1735097983093,0.28349492,705.48,704.14,0.28403442]
[1735097983288,0.26088235,705.47,704.14,0.28403442]
[1735097984895,0.26088235,705.47,704.01,0.76752021]
[1735097985096,0.26088235,705.47,704.02,0.28408283]
[1735097988200,0.28350296,705.46,704.02,0.28408283]
[1735097988397,0.26088235,705.45,704.02,0.28408283]
[1735097988593,0.28350698,705.45,704.02,0.28408283]
[1735097988798,0.26087674,705.44,704.02,0.28408283]
[1735097989400,0.28351501,705.43,704.02,0.28408283]
[1735097989591,0.26089752,705.42,704.02,0.28408283]
[1735097989796,0.54441655,705.42,704.02,0.28408283]
[1735097989998,0.26089752,705.41,704.02,0.28408283]
[1735097990399,0.54442057,705.41,704.02,0.28408283]
[1735097990698,0.26089752,705.4,704.02,0.28408283]
[1735097991296,0.28352305,705.41,704.02,0.28408283]
[1735097999414,0.26089524,705.4,704.02,0.28408283]
[1735097999813,0.28352305,705.41,704.02,0.28408283]
[1735098000014,0.2608834,705.4,704.02,0.28408283]
[1735098001713,0.28352305,705.41,704.02,0.28408283]
[1735098001914,0.26088986,705.4,704.02,0.28408283]
[1735098004618,0.26089655,705.39,704.02,0.28408283]
[1735098004817,0.26089655,705.38,704.02,0.28408283]
[1735098005018,0.26089655,705.37,704.02,0.28408283]
[1735098005321,0.28352305,705.41,704.02,0.28408283]
[1735098011721,0.28352305,705.41,704.03,0.80851535]
[1735098012325,0.28352305,705.41,704.05,0.28407073]
[1735098012920,0.28352305,705.41,704.06,0.28406669]
[1735098020137,0.28352305,705.41,704.15,1.05005443]
[1735098020836,0.28352305,705.41,704.06,0.28406669]
[1735098030139,1.06213166,706.44,704.06,0.28406669]
[1735098030344,1.48054655,712.67,704.06,0.28406669]
[1735098030345,1.06213166,706.28,704.12,1.05005443]
[1735098030549,0.26069394,706.27,704.12,1.05005443]
[1735098031251,0.26069394,706.26,704.12,1.05005443]
[1735098031447,0.26069394,706.25,704.12,1.05005443]
[1735098031650,0.26069394,706.24,704.06,0.28406669]
[1735098031950,0.26069394,706.23,704.06,0.28406669]
[1735098032153,0.26069394,706.22,704.06,0.28406669]
[1735098032348,0.26069394,706.21,704.06,0.28406669]
[1735098032653,0.26069394,706.2,704.17,1.05005443]
[1735098032851,0.26069394,706.19,704.17,1.05005443]
[1735098033145,0.26069394,706.18,704.17,1.05005443]
[1735098033351,0.28314975,706.34,704.17,1.05005443]
[1735098033352,0.26069394,706.17,704.17,1.05005443]
[1735098033551,0.28314975,706.34,704.06,0.28406669]
[1735098033552,0.26069394,706.16,704.2,1.05005443]
[1735098033754,0.26069394,706.15,704.2,1.05005443]
[1735098033954,0.26069394,706.14,704.2,1.05005443]
[1735098034149,0.26069394,706.13,704.2,1.05005443]
[1735098034451,0.26069394,706.13,704.06,0.28406669]
[1735098034452,0.26069394,706.12,704.19,1.05005443]
[1735098034652,0.26069394,706.33,704.19,1.05005443]
[1735098034954,0.26069394,706.32,704.19,1.05005443]
[1735098035153,0.26069394,706.31,704.19,1.05005443]
[1735098035349,0.26069394,706.3,704.19,1.05005443]
[1735098035550,0.26069394,706.29,704.19,1.05005443]
[1735098035755,0.26069394,706.28,704.18,1.05005443]
[1735098035950,0.26069394,706.27,704.18,1.05005443]
[1735098036154,0.26069394,706.26,704.18,1.05005443]
[1735098036349,0.26069394,706.25,704.18,1.05005443]
[1735098036551,0.26069394,706.24,704.22,1.05005443]
[1735098036752,0.26069394,706.23,704.22,1.05005443]
[1735098036949,0.26069394,706.22,704.22,1.05005443]
[1735098037152,0.26069394,706.21,704.22,1.05005443]
[1735098037353,0.26069394,706.2,704.22,1.05005443]
[1735098037552,0.26069394,706.33,704.22,1.05005443]
[1735098037754,0.26069394,706.32,704.08,1.05005443]
[1735098037954,0.26069394,706.31,704.08,1.05005443]
[1735098038151,0.26069394,706.3,704.08,1.05005443]
[1735098038355,0.26069394,706.29,704.08,1.05005443]
[1735098038555,0.26069394,706.28,704.1,0.28405056]
[1735098038859,0.28318183,706.26,704.29,1.04574426]
[1735098039059,0.26069394,706.25,704.3,0.28396989]
[1735098039361,0.28319386,706.23,704.3,0.28396989]
[1735098039559,0.26069394,706.22,704.3,0.28396989]
[1735098039960,0.28320589,706.2,704.3,0.28396989]
[1735098040160,0.26069394,706.19,704.3,0.28396989]
[1735098040355,0.28320589,706.2,704.3,0.28396989]
[1735098040554,0.26067435,706.19,704.3,0.28396989]
[1735098040758,0.26067435,706.19,704.28,0.76120931]
[1735098041264,0.26067435,706.19,703.16,2.14781421]
[1735098041265,0.26067435,706.19,704.29,0.28397393]